lending/lending_fUSD_20241120
["ID","MTS","AMOUNT","RATE_DAILY","PERIOD"]
[342792916,1732140831238,-500.0,0.00058904,120]
[342792917,1732140831247,-561.95,0.00058904,120]
[342792918,1732140831256,-868.31,0.00058904,120]
[342792919,1732140831268,-1122.37,0.00058904,120]
[342792920,1732140831278,-400.36,0.00058904,7]
[342792921,1732140831288,-620.69,0.00058904,120]
[342792922,1732140831298,-1223.49,0.00058904,120]
[342792923,1732140831307,-500.0,0.00058904,120]
[342792924,1732140831318,-1516.54,0.00058904,120]
[342792925,1732140831327,-1041.7,0.00058904,120]
[342792926,1732140831337,-4704.32,0.00058904,120]
[342792927,1732140831347,-500.0,0.00058904,120]
[342792928,1732140831357,-1384.57,0.00058904,120]
[342792929,1732140831367,-525.76,0.00058904,120]
[342792930,1732140831377,-1309.89,0.00058904,120]
[342792931,1732140831387,-500.0,0.00058904,120]
[342792932,1732140831398,-2012.7,0.00058904,120]
[342792933,1732140831407,-2257.06,0.00058904,120]
[342792934,1732140831417,-500.0,0.00058904,120]
[342792935,1732140831427,-500.0,0.00058904,120]
[342792936,1732140831436,-656.82,0.00058904,120]
[342792937,1732140831446,-1047.88,0.00058904,120]
[342792938,1732140831455,-1177.9,0.00058904,120]
[342792939,1732140831465,-1603.42,0.00058904,120]
[342792940,1732140831476,-1567.54,0.00058904,120]
[342792941,1732140831486,-500.0,0.00058904,120]
[342792942,1732140831496,-834.44,0.00058904,120]
[342792943,1732140831506,-500.0,0.00058904,120]
[342792944,1732140831517,-2004.44,0.00058904,120]
[342792945,1732140831527,-1050.71,0.00058904,120]
[342792946,1732140831537,-1803.54,0.00058904,120]
[342792947,1732140831546,-650.66,0.00058904,120]
[342792948,1732140831555,-516.91,0.00058904,120]
[342792949,1732140831565,-500.0,0.00058904,120]
[342792950,1732140831574,-500.0,0.00058904,120]
[342792951,1732140831583,-950.3,0.00058904,120]
[342792952,1732140831594,-4162.19,0.00058904,120]
[342792953,1732140831604,-1325.24,0.00058904,120]
[342792954,1732140831613,-729.88,0.00058904,120]
[342792955,1732140831623,-1437.64,0.00058904,120]
[342792956,1732140831633,-951.19,0.00058904,120]
[342792957,1732140831643,-739.2,0.00058904,120]
[342792958,1732140831653,-711.16,0.00058904,120]
[342792959,1732140831662,-35063.23,0.00058904,120]
[342792960,1732140831671,-758.38,0.00058904,120]
[342792961,1732140831680,-500.0,0.00058904,120]
[342792962,1732140831690,-1066.88,0.00058904,120]
[342792963,1732140831700,-604.09,0.00058904,120]
[342792964,1732140831709,-500.0,0.00058904,120]
[342792965,1732140831718,-1309.97,0.00058904,120]
[342792966,1732140831728,-516.9,0.00058904,120]
[342792967,1732140831738,-1271.19,0.00058904,120]
[342792968,1732140831747,-1776.53,0.00058904,120]
[342792969,1732140831757,-1055.78,0.00058904,120]
[342792970,1732140831770,-2027.31,0.00058904,120]
[342792971,1732140831780,-2957.46,0.00058904,120]
[342792972,1732140831789,-3450.26,0.00058904,120]
[342792973,1732140831799,-565.96,0.00058904,120]
[342792974,1732140831809,-1015.77,0.00058904,120]
[342792975,1732140831818,-500.0,0.00058904,120]
[342792976,1732140831828,-5653.29,0.00058904,120]
[342792977,1732140831838,-2531.55,0.00058904,120]
[342792978,1732140831847,-1396.17,0.00058904,120]
[342792979,1732140831856,-699.76,0.00058904,120]
[342792980,1732140831866,-578.1,0.00058904,120]
[342792981,1732140831875,-1045.04,0.00058904,120]
[342792982,1732140831884,-1833.67,0.00058904,120]
[342792983,1732140831893,-500.0,0.00058904,120]
[342792984,1732140831903,-671.36,0.00058904,120]
[342792985,1732140831912,-1250.43,0.00058904,120]
[342792986,1732140831922,-618.56,0.00058904,120]
[342792987,1732140831931,-1529.97,0.00058904,120]
[342792988,1732140831941,-916.63,0.00058904,120]
[342792989,1732140831950,-1979.2,0.00058904,120]
[342792990,1732140831960,-7124.81,0.00058904,120]
[342792991,1732140831970,-1114.64,0.00058904,120]
[342792992,1732140831979,-500.0,0.00058904,120]
[342792993,1732140831989,-1049.5,0.00058904,120]
[342792994,1732140831999,-1449.91,0.00058904,120]
[342792995,1732140832010,-2536.25,0.00058904,120]
[342792996,1732140832030,-3951.61,0.00058904,120]
[342792997,1732140832039,-2472.73,0.00058904,120]
[342792998,1732140832049,-500.0,0.00058904,120]
[342792999,1732140832059,-786.55,0.00058904,120]
[342793000,1732140832069,-4870.15,0.00058904,120]
[342793001,1732140832078,-883.86,0.00058904,120]
[342793002,1732140832087,-4533.42,0.00058904,120]
[342793003,1732140832097,-851.5,0.00058904,120]
[342793004,1732140832107,-636.47,0.00058904,120]
[342793005,1732140832117,-500.0,0.00058904,120]
[342793006,1732140832126,-2000.0,0.00058904,30]
[342793007,1732140832136,-1816.21,0.00058904,120]
[342793008,1732140832145,-616.92,0.00058904,120]
[342793009,1732140832155,-1014.23,0.00058904,120]
[342793010,1732140832164,-6811.17,0.00058904,120]
[342793011,1732140832174,-753.95,0.00058904,120]
[342793012,1732140832187,-1332.89,0.00058904,120]
[342793013,1732140832197,-500.0,0.00058904,120]
[342793014,1732140832208,-10722.81,0.00058904,120]
[342793015,1732140832217,-1359.85,0.00058904,120]
[342793016,1732140832227,-2324.44,0.00058904,120]
[342793017,1732140832237,-535.04,0.00058904,120]
[342793018,1732140832247,-4406.16,0.00058904,120]
[342793019,1732140832257,-1128.91,0.00058904,120]
[342793020,1732140832269,-500.0,0.00058904,120]
[342793021,1732140832279,-665.96,0.00058904,120]
[342793022,1732140832288,-980.99,0.00058904,120]
[342793023,1732140832299,-580.64,0.00058904,120]
[342793024,1732140832308,-892.8,0.00058904,120]
[342793025,1732140832317,-1436.75,0.00058904,120]
[342793026,1732140832327,-558.99,0.00058904,120]
[342793027,1732140832337,-778.22,0.00058904,120]
[342793028,1732140832346,-1153.44,0.00058904,7]
[342793029,1732140832356,-2548.81,0.00058904,120]
[342793030,1732140832366,-3675.23,0.00058904,120]
[342793031,1732140832376,-3167.44,0.00058904,120]
[342793032,1732140832386,-2249.83,0.00058904,120]
[342793033,1732140832397,-11179.92,0.00058904,21]
[342793034,1732140832407,-500.0,0.00058904,120]
[342793035,1732140832416,-859.5,0.00058904,120]
[342793036,1732140832426,-922.45,0.00058904,120]
[342793037,1732140832436,-3662.75,0.00058904,120]
[342793038,1732140832446,-1994.35,0.00058904,120]
[342793039,1732140832457,-500.0,0.00058904,120]
[342793040,1732140832466,-1363.9,0.00058904,120]
[342793041,1732140832476,-66449.02,0.00058904,5]
[342793042,1732140832486,-1162.72,0.00058904,120]
[342793043,1732140832496,-1114.06,0.00058904,120]
[342793044,1732140832506,-1815.23,0.00058904,120]
[342793045,1732140832517,-500.0,0.00058904,120]
[342793046,1732140832527,-1159.58,0.00058904,120]
[342793047,1732140832536,-500.0,0.00058904,120]
[342793048,1732140832546,-6111.41,0.00058904,120]
[342793049,1732140832555,-500.0,0.00058904,120]
[342793050,1732140832565,-2826.01,0.00058904,120]
[342793051,1732140832575,-417.48630965,0.00058904,120]
[342793052,1732140832585,-1031.65,0.00058904,120]
[342793053,1732140832595,-532.59,0.00058904,120]
[342793054,1732140832604,-553.58,0.00058904,120]
[342793055,1732140832614,-754.16,0.00058904,120]
[342793056,1732140832624,-500.0,0.00058904,120]
[342793057,1732140832634,-3918.3,0.00058904,120]
[342793058,1732140832643,-2233.29,0.00058904,120]
[342793059,1732140832653,-2901.67,0.00058904,120]
[342793060,1732140832662,-687.41,0.00058904,120]
[342793061,1732140832672,-500.0,0.00058904,120]
[342793062,1732140832682,-1140.89,0.00058904,120]
[342793063,1732140832692,-743.27,0.00058904,120]
[342793064,1732140832702,-4798.42,0.00058904,120]
[342793065,1732140832711,-884.65,0.00058904,120]
[342793066,1732140832721,-1609.97,0.00058904,120]
[342793067,1732140832731,-589.18,0.00058904,120]
[342793068,1732140832741,-500.0,0.00058904,120]
[342793069,1732140832750,-548.16,0.00058904,120]
[342793070,1732140832760,-1086.88,0.00058904,120]
[342793071,1732140832770,-725.57,0.00058904,120]
[342793072,1732140832779,-1158.88,0.00058904,120]
[342793073,1732140832789,-842.19,0.00058904,120]
[342793074,1732140832799,-7009.95,0.00058904,120]
[342793075,1732140832809,-2713.37,0.00058904,120]
[342793076,1732140832819,-2674.97,0.00058904,120]
[342793077,1732140832828,-1095.19,0.00058904,120]
[342793078,1732140832839,-3162.29,0.00058904,120]
[342793079,1732140832848,-500.0,0.00058904,120]
[342793080,1732140832857,-6968.45,0.00058904,60]
[342793081,1732140832866,-5192.12,0.00058904,120]
[342793082,1732140832876,-788.84,0.00058904,120]
[342793083,1732140832885,-500.0,0.00058904,120]
[342793084,1732140832895,-4873.91,0.00058904,120]
[342793085,1732140832904,-565.84,0.00058904,120]
[342793086,1732140832913,-295.99425881,0.00058904,120]
[342793087,1732140832923,-736.59,0.00058904,120]
[342793088,1732140832932,-778.41,0.00058904,120]
[342793089,1732140832942,-2123.81,0.00058904,120]
[342793090,1732140832952,-1135.51,0.00058904,120]
[342793091,1732140832961,-801.02,0.00058904,120]
[342793092,1732140832971,-1176.11,0.00058904,120]
[342793093,1732140832980,-551.86858476,0.00058904,120]
[342793094,1732140832989,-6444.84,0.00058904,120]
[342793095,1732140832998,-840.5,0.00058904,120]
[342793096,1732140833008,-1149.75,0.00058904,120]
[342793097,1732140833019,-538.19,0.00058904,120]
[342793098,1732140833028,-1918.75,0.00058904,120]
[342793099,1732140833037,-527.39,0.00058904,120]
[342793100,1732140833047,-846.33,0.00058904,120]
[342793101,1732140833056,-613.35,0.00058904,120]
[342793102,1732140833065,-1437.44,0.00058904,120]
[342793103,1732140833075,-655.97,0.00058904,120]
[342793104,1732140833084,-1217.61,0.00058904,120]
[342793105,1732140833094,-7358.45,0.00058904,120]
[342793106,1732140833104,-1149.18,0.00058904,120]
[342793107,1732140833113,-924.66,0.00058904,120]
[342793108,1732140833122,-1147.11,0.00058904,120]
[342793109,1732140833131,-1368.4,0.00058904,120]
[342793110,1732140833140,-1974.94,0.00058904,120]
[342793111,1732140833149,-500.0,0.00058904,120]
[342793112,1732140833158,-13034.59,0.00058904,120]
[342793113,1732140833167,-2237.64,0.00058904,120]
[342793114,1732140833178,-17457.35,0.00058904,120]
[342793115,1732140833188,-2737.65,0.00058904,120]
[342793116,1732140833197,-551.05,0.00058904,120]
[342793117,1732140833207,-2479.1,0.00058904,120]
[342793118,1732140833215,-500.0,0.00058904,120]
[342793119,1732140833225,-500.0,0.00058904,120]
[342793120,1732140833235,-3077.78,0.00058904,120]
[342793121,1732140833244,-656.88,0.00058904,120]
[342793122,1732140833255,-1550.26,0.00058904,120]
[342793123,1732140833265,-500.0,0.00058904,120]
[342793124,1732140833405,-725.78,0.00058904,120]
[342793125,1732140833415,-5411.3,0.00058904,120]
[342793126,1732140833424,-996.23,0.00058904,120]
[342793127,1732140833434,-4393.1,0.00058904,120]
[342793128,1732140833444,-1967.61,0.00058904,120]
[342793129,1732140833454,-535.35,0.00058904,120]
[342793130,1732140833463,-500.0,0.00058904,120]
[342793131,1732140833473,-1127.77,0.00058904,120]
[342793132,1732140833483,-559.06,0.00058904,120]
[342793133,1732140833492,-580.25,0.00058904,120]
[342793134,1732140833502,-570.31,0.00058904,120]
[342793135,1732140833512,-8863.78,0.00058904,120]
[342793136,1732140833522,-604.62,0.00058904,120]
[342793137,1732140833531,-2040.5,0.00058904,120]
[342793138,1732140833541,-1500.0,0.00058904,120]
[342793139,1732140833551,-7043.87,0.00058904,120]
[342793140,1732140833559,-2305.42,0.00058904,120]
[342793141,1732140833569,-762.69,0.00058904,120]
[342793142,1732140833579,-713.08,0.00058904,120]
[342793143,1732140833589,-1604.28,0.00058904,120]
[342793144,1732140833598,-500.0,0.00058904,120]
[342793145,1732140833607,-1101.03,0.00058904,120]
[342793146,1732140833616,-500.0,0.00058904,120]
[342793147,1732140833626,-500.0,0.00058904,120]
[342793148,1732140833636,-1320.75,0.00058904,120]
[342793149,1732140833645,-500.0,0.00058904,120]
[342793150,1732140833654,-500.0,0.00058904,120]
[342793151,1732140833664,-5594.76,0.00058904,120]
[342793152,1732140833674,-1100.57,0.00058904,120]
[342793153,1732140833683,-500.0,0.00058904,120]
[342793154,1732140833693,-918.38,0.00058904,120]
[342793155,1732140833703,-3670.68,0.00058904,120]
[342793156,1732140833713,-450.0,0.00058904,120]
[342793157,1732140833723,-561.2,0.00058904,120]
[342793158,1732140833732,-1644.0,0.00058996,30]
[342793159,1732140833742,-1983.40698099,0.00058999,120]
[342793160,1732140833751,-50000.0,0.00059,49]
[342793161,1732140833761,-50000.0,0.00059,59]
[342793162,1732140833772,-50000.0,0.00059,39]
[342793163,1732140833781,-900.0,0.00059,60]
[342793164,1732140833791,-5121.35612197,0.00059,120]
[342793165,1732140833800,-40000.0,0.00059,120]
[342793166,1732140833810,-10000.0,0.00059,120]
[342793167,1732140833820,-1000.0,0.00059,120]
[342793168,1732140833830,-10000.0,0.00059,120]
[342793169,1732140833839,-20000.0,0.00059,120]
[342793170,1732140833849,-5000.0,0.00059,120]
[342793171,1732140833860,-1000000.0,0.00059,120]
[342793172,1732140833869,-81430.19030958,0.00059,120]
[342793173,1732140833879,-56720.0,0.00059,120]
[342793174,1732140833890,-56720.0,0.00059,120]
[342793175,1732140833901,-56720.0,0.00059,120]
[342793176,1732140833912,-950.0,0.00059,2]
[342793177,1732140833922,-569.46091912,0.0005909,2]
[342793178,1732140833931,-500.0,0.00059178,7]
[342793179,1732140833941,-500.0,0.00059178,120]
[342793180,1732140833950,-186.75852908,0.00059178,120]
[342793181,1732140833960,-789.82,0.00059178,120]
[342793182,1732140833970,-907.52,0.00059178,120]
[342793183,1732140833979,-676.32,0.00059178,120]
[342793184,1732140833988,-1495.04,0.00059178,120]
[342793185,1732140833998,-690.77,0.00059178,120]
[342793186,1732140834012,-500.0,0.00059178,120]
[342793187,1732140834024,-500.0,0.00059178,120]
[342793188,1732140834034,-333.42465644,0.00059178,120]
[342793189,1732140834044,-500.0,0.00059178,120]
[342793190,1732140834054,-159.74563194,0.00059178,120]
[342793191,1732140834064,-802.91,0.00059178,120]
[342793192,1732140834074,-1078.99,0.00059178,120]
[342793193,1732140834084,-1196.86,0.00059178,120]
[342793194,1732140834094,-1553.66,0.00059178,120]
[342793195,1732140834104,-500.0,0.00059178,120]
[342793196,1732140834113,-500.0,0.00059178,120]
[342793197,1732140834123,-1468.02,0.00059178,120]
[342793198,1732140834133,-500.0,0.00059178,120]
[342793199,1732140834143,-1204.33,0.00059178,120]
[342793200,1732140834152,-689.54,0.00059178,120]
[342793201,1732140834162,-500.0,0.00059178,120]
[342793202,1732140834171,-500.0,0.00059178,120]
[342793203,1732140834184,-500.0,0.00059178,120]
[342793204,1732140834194,-3362.7,0.00059178,120]
[342793205,1732140834204,-500.0,0.00059178,120]
[342793206,1732140834214,-2907.27,0.00059178,120]
[342793207,1732140834224,-1034.08,0.00059178,120]
[342793208,1732140834234,-500.0,0.00059178,120]
[342793209,1732140834244,-577.45,0.00059178,120]
[342793210,1732140834253,-691.51,0.00059178,120]
[342793211,1732140834263,-1141.42,0.00059178,120]
[342793212,1732140834274,-1067.52,0.00059178,120]
[342793213,1732140834284,-538.58001708,0.00059178,120]
[342793214,1732140834294,-1047.06,0.00059178,120]
[342793215,1732140834304,-1588.94,0.00059178,120]
[342793216,1732140834313,-826.46,0.00059178,120]
[342793217,1732140834323,-883.47,0.00059178,120]
[342793218,1732140834332,-500.0,0.00059178,120]
[342793219,1732140834341,-1125.72,0.00059178,120]
[342793220,1732140834352,-191.99260556,0.00059178,120]
[342793221,1732140834361,-1116.01,0.00059178,120]
[342793222,1732140834371,-1198.91,0.00059178,120]
[342793223,1732140834381,-1410.51,0.00059178,120]
[342793224,1732140834391,-508.72,0.00059178,120]
[342793225,1732140834401,-481.68318738,0.00059178,120]
[342793226,1732140834411,-500.0,0.00059178,120]
[342793227,1732140834420,-501.02,0.00059178,120]
[342793228,1732140834431,-854.5,0.00059178,120]
[342793229,1732140834441,-500.0,0.00059178,120]
[342793230,1732140834451,-923.86,0.00059178,120]
[342793231,1732140834461,-500.0,0.00059178,120]
[342793232,1732140834471,-500.0,0.00059178,60]
[342793233,1732140834482,-810.6,0.00059178,120]
[342793234,1732140834492,-1843.46,0.00059178,120]
[342793235,1732140834502,-909.22,0.00059178,120]
[342793236,1732140834512,-425.12440535,0.00059178,120]
[342793237,1732140834525,-540.8492277,0.00059178,120]
[342793238,1732140834535,-533.52,0.00059178,120]
[342793239,1732140834544,-2415.23,0.00059178,120]
[342793240,1732140834554,-972.8,0.00059178,120]
[342793241,1732140834563,-1624.46,0.00059178,120]
[342793242,1732140834574,-530.46,0.00059178,120]
[342793243,1732140834584,-730.89,0.00059178,120]
[342793244,1732140834595,-615.39,0.00059178,120]
[342793245,1732140834606,-509.75889667,0.00059178,120]
[342793246,1732140834617,-500.0,0.00059178,120]
[342793247,1732140834627,-515.66,0.00059178,120]
[342793248,1732140834638,-783.6,0.00059178,120]
[342793249,1732140834649,-713.08,0.00059178,120]
[342793250,1732140834660,-524.36,0.00059178,120]
[342793251,1732140834671,-1852.69,0.00059178,120]
[342793252,1732140834683,-500.0,0.00059178,120]
[342793253,1732140834694,-729.05,0.00059178,120]
[342793254,1732140834705,-2435.5,0.00059178,120]
[342793255,1732140834717,-521.8,0.00059178,120]
[342793256,1732140834728,-642.48,0.00059178,120]
[342793257,1732140834740,-849.85,0.00059178,120]
[342793258,1732140834751,-627.45,0.00059178,120]
[342793259,1732140834762,-858.26,0.00059178,120]
[342793260,1732140834774,-503.51,0.00059178,120]
[342793261,1732140834785,-742.62,0.00059178,120]
[342793262,1732140834796,-2800.08,0.00059178,120]
[342793263,1732140834807,-500.0,0.00059178,120]
[342793264,1732140834818,-563.45,0.00059178,120]
[342793265,1732140834829,-1104.08,0.00059178,120]
[342793266,1732140834840,-640.83503474,0.00059178,120]
[342793267,1732140834851,-1222.85,0.00059178,120]
[342793268,1732140834861,-1021.61,0.00059178,120]
[342793269,1732140834872,-578.33,0.00059178,120]
[342793270,1732140834883,-1661.17,0.00059178,120]
[342793271,1732140834893,-800.14,0.00059178,120]
[342793272,1732140834904,-500.0,0.00059178,120]
[342793273,1732140834915,-1090.19,0.00059178,120]
[342793274,1732140834926,-500.0,0.00059178,120]
[342793275,1732140834937,-1054.3,0.00059178,120]
[342793276,1732140834947,-1209.25,0.00059178,120]
[342793277,1732140834958,-1127.18,0.00059178,120]
[342793278,1732140834968,-500.0,0.00059178,120]
[342793279,1732140834980,-1267.34,0.00059178,120]
[342793280,1732140834991,-2432.38,0.00059178,7]
[342793281,1732140835002,-1560.72,0.00059178,120]
[342793282,1732140835013,-1047.78,0.00059178,120]
[342793283,1732140835026,-655.09,0.00059178,120]
[342793284,1732140835037,-313.14941799,0.00059178,120]
[342793285,1732140835048,-500.0,0.00059178,120]
[342793286,1732140835059,-500.0,0.00059178,120]
[342793287,1732140835070,-1376.36,0.00059178,120]
[342793288,1732140835080,-758.47,0.00059178,120]
[342793289,1732140835091,-1218.68,0.00059178,120]
[342793290,1732140835102,-1031.21,0.00059178,120]
[342793291,1732140835113,-746.97,0.00059178,120]
[342793292,1732140835124,-500.0,0.00059178,120]
[342793293,1732140835135,-1530.02,0.00059178,120]
[342793294,1732140835146,-859.85,0.00059178,120]
[342793295,1732140835157,-1956.13,0.00059178,120]
[342793296,1732140835168,-626.84,0.00059178,120]
[342793297,1732140835182,-925.63,0.00059178,120]
[342793298,1732140835193,-1089.2,0.00059178,120]
[342793299,1732140835204,-500.0,0.00059178,120]
[342793300,1732140835215,-746.22,0.00059178,120]
[342793301,1732140835227,-1753.04,0.00059178,120]
[342793302,1732140835237,-1615.28,0.00059178,120]
[342793303,1732140835248,-750.0,0.00059178,120]
[342793304,1732140835262,-2808.16,0.00059178,120]
[342793305,1732140835275,-628.55,0.00059178,120]
[342793306,1732140835285,-2720.22,0.00059178,120]
[342793307,1732140835296,-1040.43,0.00059178,120]
[342793308,1732140835308,-679.38,0.00059178,120]
[342793309,1732140835319,-579.85,0.00059178,120]
[342793310,1732140835329,-1233.54,0.00059178,120]
[342793311,1732140835339,-560.33,0.00059178,120]
[342793312,1732140835351,-1140.69,0.00059178,120]
[342793313,1732140835362,-1241.7,0.00059178,120]
[342793314,1732140835373,-673.6,0.00059178,120]
[342793315,1732140835384,-1595.79,0.00059178,120]
[342793316,1732140835395,-690.2,0.00059178,120]
[342793317,1732140835406,-614.35,0.00059178,120]
[342793318,1732140835417,-1420.27,0.00059178,120]
[342793319,1732140835429,-500.0,0.00059178,120]
[342793320,1732140835440,-230.62999859,0.00059178,120]
[342793321,1732140835451,-500.0,0.00059178,120]
[342793322,1732140835462,-465.16194982,0.00059178,120]
[342793323,1732140835474,-1747.91,0.00059178,120]
[342793324,1732140835485,-1026.85,0.00059178,120]
[342793325,1732140835496,-1208.59,0.00059178,120]
[342793326,1732140835507,-813.38,0.00059178,120]
[342793327,1732140835520,-1929.2,0.00059178,120]
[342793328,1732140835531,-509.94,0.00059178,120]
[342793329,1732140835542,-547.23,0.00059178,120]
[342793330,1732140835553,-983.72,0.00059178,120]
[342793331,1732140835563,-1133.87,0.00059178,120]
[342793332,1732140835574,-2243.95,0.00059178,120]
[342793333,1732140835585,-500.0,0.00059178,120]
[342793334,1732140835596,-837.29,0.00059178,120]
[342793335,1732140835607,-601.65,0.00059178,120]
[342793336,1732140835619,-500.0,0.00059178,120]
[342793337,1732140835630,-500.0,0.00059178,120]
[342793338,1732140835641,-1244.02,0.00059178,120]
[342793339,1732140835652,-500.0,0.00059178,120]
[342793340,1732140835663,-581.48,0.00059178,120]
[342793341,1732140835674,-912.77,0.00059178,120]
[342793342,1732140835684,-822.59,0.00059178,120]
[342793343,1732140835695,-1640.54,0.00059178,120]
[342793344,1732140835705,-957.41,0.00059178,120]
[342793345,1732140835717,-3305.34,0.00059178,120]
[342793346,1732140835728,-546.92,0.00059178,120]
[342793347,1732140835739,-500.0,0.00059178,120]
[342793348,1732140835750,-1590.28,0.00059178,120]
[342793349,1732140835761,-4503.54,0.00059178,120]
[342793350,1732140835775,-2459.56,0.00059178,120]
[342793351,1732140835786,-5054.97,0.00059178,120]
[342793352,1732140835798,-500.0,0.00059178,120]
[342793353,1732140835821,-500.0,0.00059178,120]
[342793354,1732140835839,-1237.62,0.00059178,120]
[342793355,1732140835860,-1805.81,0.00059178,120]
[342793356,1732140835879,-1705.69,0.00059178,120]
[342793357,1732140835896,-730.02,0.00059178,120]
[342793358,1732140835914,-556.28,0.00059178,120]
[342793359,1732140835935,-1293.03,0.00059178,120]
[342793360,1732140835954,-735.83,0.00059178,120]
[342793361,1732140835973,-875.45,0.00059178,120]
[342793362,1732140835990,-2355.16,0.00059178,120]
[342793363,1732140836006,-529.9,0.00059178,120]
[342793364,1732140836027,-1626.59,0.00059178,120]
[342793365,1732140836042,-1065.14,0.00059178,120]
[342793366,1732140836059,-899.71,0.00059178,120]
[342793367,1732140836075,-500.0,0.00059178,120]
[342793368,1732140836098,-1031.07,0.00059178,120]
[342793369,1732140836114,-2139.66,0.00059178,120]
[342793370,1732140836131,-1000.0,0.00059178,30]
[342793371,1732140836148,-1746.7,0.00059178,120]
[342793372,1732140836163,-525.57,0.00059178,120]
[342793373,1732140836180,-1007.82,0.00059178,120]
[342793374,1732140836213,-500.0,0.00059178,120]
[342793375,1732140836240,-525.94,0.00059178,120]
[342793376,1732140836261,-511.53255179,0.00059178,120]
[342793377,1732140836289,-800.11,0.00059178,120]
[342793378,1732140836310,-3332.16,0.00059178,120]
[342793379,1732140836330,-2450.69,0.00059178,120]
[342793380,1732140836351,-1123.27,0.00059178,120]
[342793381,1732140836374,-1393.96,0.00059178,120]
[342793382,1732140836393,-967.57,0.00059178,120]
[342793383,1732140836412,-500.0,0.00059178,120]
[342793384,1732140836433,-1357.65,0.00059178,120]
[342793385,1732140836451,-500.0,0.00059178,120]
[342793386,1732140836469,-1642.87,0.00059178,120]
[342793387,1732140836487,-1588.79,0.00059178,90]
[342793388,1732140836504,-500.0,0.00059178,120]
[342793389,1732140836525,-1853.26,0.00059178,120]
[342793390,1732140836543,-1717.17,0.00059178,120]
[342793391,1732140836560,-210.36578731,0.00059178,120]
[342793392,1732140836578,-700.0,0.00059178,120]
[342793393,1732140836594,-2546.22,0.00059178,120]
[342793394,1732140836611,-2834.37,0.00059178,120]
[342793395,1732140836626,-1334.03,0.00059178,120]
[342793396,1732140836644,-2885.23,0.00059178,120]
[342793397,1732140836662,-4453.81,0.00059178,120]
[342793398,1732140836679,-2241.05,0.00059178,120]
[342793399,1732140836696,-2217.98,0.00059178,120]
[342793400,1732140836712,-412.66220118,0.00059178,120]
[342793401,1732140836729,-1402.45,0.00059178,60]
[342793402,1732140836745,-800.61,0.00059178,120]
[342793403,1732140836760,-500.0,0.00059178,120]
[342793404,1732140836778,-932.27,0.00059178,120]
[342793405,1732140836794,-1004.07,0.00059178,120]
[342793406,1732140836811,-2000.63,0.00059178,120]
[342793407,1732140836828,-703.55,0.00059178,120]
[342793408,1732140836843,-2241.76,0.00059178,120]
[342793409,1732140836859,-1132.68,0.00059178,120]
[342793410,1732140836876,-596.11,0.00059178,120]
[342793411,1732140836891,-794.52,0.00059178,120]
[342793412,1732140836906,-833.99,0.00059178,120]
[342793413,1732140836922,-2777.12,0.00059178,120]
[342793414,1732140836939,-1558.24,0.00059178,120]
[342793415,1732140836955,-1309.21,0.00059178,120]